[Event "Late-Titled-Tuesday-Blitz-October-10-2023"]
[Site "Chess.com"]
[Date "2023.10.10"]
[Round "10"]
[White "vyprd"]
[Black "GMJustin"]
[Result "1-0"]
[WhiteElo "2349"]
[BlackElo "2178"]
[TimeControl "180+1"]
[EndTime "15:47:37 PDT"]
[Termination "vyprd won by resignation"]

1. e4 {[%clk 0:03:00.9]} 1... e5 {[%clk 0:02:51.5]} 2. Nf3 {[%clk 0:02:58.8]}
2... Nc6 {[%clk 0:02:51.5]} 3. Bc4 {[%clk 0:02:58.8]} 3... Bc5 {[%clk
0:02:49.8]} 4. c3 {[%clk 0:02:57.8]} 4... Nf6 {[%clk 0:02:48.7]} 5. d4 {[%clk
0:02:58.3]} 5... exd4 {[%clk 0:02:45.3]} 6. b4 {[%clk 0:02:58.9]} 6... Be7
{[%clk 0:02:39.6]} 7. e5 {[%clk 0:02:57]} 7... Ng4 {[%clk 0:02:33.2]} 8. cxd4
{[%clk 0:02:55]} 8... Bxb4+ {[%clk 0:02:21.2]} 9. Nbd2 {[%clk 0:02:53.9]} 9...
d5 {[%clk 0:02:14.6]} 10. Bb5 {[%clk 0:02:52.3]} 10... O-O {[%clk 0:02:03.1]}
11. Bxc6 {[%clk 0:02:51.6]} 11... bxc6 {[%clk 0:02:02.6]} 12. O-O {[%clk
0:02:51.9]} 12... c5 {[%clk 0:01:48.4]} 13. h3 {[%clk 0:02:49.8]} 13... Nh6
{[%clk 0:01:46.3]} 14. dxc5 {[%clk 0:02:49.8]} 14... Bxc5 {[%clk 0:01:35.3]} 15.
Nb3 {[%clk 0:02:49.6]} 15... Be7 {[%clk 0:01:24.2]} 16. Bxh6 {[%clk 0:02:49.8]}
16... gxh6 {[%clk 0:01:24.2]} 17. Rc1 {[%clk 0:02:47]} 17... Be6 {[%clk
0:00:53.5]} 18. Nfd4 {[%clk 0:02:44.8]} 18... Qd7 {[%clk 0:00:37.1]} 19. f4
{[%clk 0:02:40.1]} 19... f5 {[%clk 0:00:21.3]} 20. Rc6 {[%clk 0:02:32.1]} 1-0

[Event "Late-Titled-Tuesday-Blitz-October-10-2023"]
[Site "Chess.com"]
[Date "2023.10.10"]
[Round "10"]
[White "protectiago"]
[Black "PNEPaul"]
[Result "1-0"]
[WhiteElo "2070"]
[BlackElo "1978"]
[TimeControl "180+1"]
[EndTime "15:47:38 PDT"]
[Termination "protectiago won by resignation"]

1. d4 {[%clk 0:03:00.9]} 1... a6 {[%clk 0:02:59.3]} 2. g3 {[%clk 0:02:59.5]}
2... d6 {[%clk 0:02:59.4]} 3. Bg2 {[%clk 0:02:59.5]} 3... g6 {[%clk 0:02:59.8]}
4. Nf3 {[%clk 0:02:58.1]} 4... Bg7 {[%clk 0:03:00.3]} 5. O-O {[%clk 0:02:57.9]}
5... h6 {[%clk 0:03:00.7]} 6. c4 {[%clk 0:02:57.6]} 6... Nd7 {[%clk 0:03:01.1]}
7. Nc3 {[%clk 0:02:57.8]} 7... e6 {[%clk 0:03:01.4]} 8. e4 {[%clk 0:02:58]} 8...
Ne7 {[%clk 0:03:01.4]} 9. Qc2 {[%clk 0:02:50.9]} 9... O-O {[%clk 0:03:01]} 10.
Be3 {[%clk 0:02:50.9]} 10... f5 {[%clk 0:02:54.9]} 11. Rad1 {[%clk 0:02:47.3]}
11... c6 {[%clk 0:02:53.2]} 12. e5 {[%clk 0:02:41.6]} 12... d5 {[%clk
0:02:46.4]} 13. cxd5 {[%clk 0:02:36.6]} 13... Nxd5 {[%clk 0:02:42.8]} 14. Nxd5
{[%clk 0:02:34.5]} 14... cxd5 {[%clk 0:02:42.2]} 15. Nh4 {[%clk 0:02:21.4]}
15... Kh7 {[%clk 0:02:40.8]} 16. f4 {[%clk 0:02:05.5]} 16... Nb6 {[%clk
0:02:36.5]} 17. b3 {[%clk 0:02:03.5]} 17... Bd7 {[%clk 0:02:36.1]} 18. a4 {[%clk
0:01:55]} 18... Rc8 {[%clk 0:02:35.4]} 19. Qd2 {[%clk 0:01:51.2]} 19... Bc6
{[%clk 0:02:28]} 20. Rc1 {[%clk 0:01:49.8]} 20... Nd7 {[%clk 0:02:25.3]} 21. Rc2
{[%clk 0:01:46.9]} 21... Qe7 {[%clk 0:01:59.7]} 22. Rfc1 {[%clk 0:01:44.3]}
22... Rg8 {[%clk 0:01:27.9]} 23. Nf3 {[%clk 0:01:34.8]} 23... Nf8 {[%clk
0:01:24.7]} 24. Bf1 {[%clk 0:01:34.6]} 24... Bd7 {[%clk 0:01:19.9]} 25. Rxc8
{[%clk 0:01:30.4]} 25... Bxc8 {[%clk 0:01:19.6]} 26. Rxc8 {[%clk 0:01:28.1]} 1-0

[Event "Late-Titled-Tuesday-Blitz-October-10-2023"]
[Site "Chess.com"]
[Date "2023.10.10"]
[Round "10"]
[White "GoldenShare"]
[Black "Zampronha1971"]
[Result "1-0"]
[WhiteElo "2538"]
[BlackElo "2326"]
[TimeControl "180+1"]
[EndTime "15:47:57 PDT"]
[Termination "GoldenShare won by resignation"]

1. e4 {[%clk 0:02:59.9]} 1... c5 {[%clk 0:03:00]} 2. Nc3 {[%clk 0:02:55.3]} 2...
e6 {[%clk 0:02:59.9]} 3. Nf3 {[%clk 0:02:55.2]} 3... Nc6 {[%clk 0:03:00.4]} 4.
d4 {[%clk 0:02:56.1]} 4... cxd4 {[%clk 0:03:00.7]} 5. Nxd4 {[%clk 0:02:57]} 5...
Qc7 {[%clk 0:03:01.1]} 6. Be2 {[%clk 0:02:56.5]} 6... a6 {[%clk 0:03:00.7]} 7.
f4 {[%clk 0:02:56.7]} 7... d6 {[%clk 0:02:46.9]} 8. Be3 {[%clk 0:02:56.1]} 8...
Nf6 {[%clk 0:02:46.2]} 9. Qd2 {[%clk 0:02:56.4]} 9... Be7 {[%clk 0:02:46.1]} 10.
O-O-O {[%clk 0:02:56.8]} 10... Bd7 {[%clk 0:02:44.2]} 11. g4 {[%clk 0:02:56.8]}
11... Nxd4 {[%clk 0:02:42.6]} 12. Qxd4 {[%clk 0:02:57.7]} 12... e5 {[%clk
0:02:38.4]} 13. Qd3 {[%clk 0:02:58.1]} 13... Bc6 {[%clk 0:02:38.1]} 14. g5
{[%clk 0:02:53.6]} 14... Nd7 {[%clk 0:02:35.5]} 15. f5 {[%clk 0:02:53.1]} 15...
Nc5 {[%clk 0:02:18.1]} 16. Bxc5 {[%clk 0:02:52.9]} 16... dxc5 {[%clk 0:02:19]}
17. Nd5 {[%clk 0:02:53.4]} 17... Bxd5 {[%clk 0:02:17.1]} 18. Qxd5 {[%clk
0:02:54.3]} 18... Rd8 {[%clk 0:02:12.6]} 19. Qb3 {[%clk 0:02:46.9]} 19... Bxg5+
{[%clk 0:02:12]} 20. Kb1 {[%clk 0:02:46.8]} 20... O-O {[%clk 0:01:57.3]} 21.
Rhg1 {[%clk 0:02:43.7]} 21... Rxd1+ {[%clk 0:01:56]} 22. Bxd1 {[%clk 0:02:44.1]}
22... Bf6 {[%clk 0:01:47.6]} 23. Be2 {[%clk 0:02:43.9]} 23... Rd8 {[%clk
0:01:45.1]} 24. Bc4 {[%clk 0:02:39.4]} 24... b5 {[%clk 0:01:41.4]} 25. Bd5
{[%clk 0:02:39.7]} 25... c4 {[%clk 0:01:41.4]} 26. Qa3 {[%clk 0:02:35.8]} 26...
Qd6 {[%clk 0:01:35]} 27. Qe3 {[%clk 0:02:32.8]} 27... Qc7 {[%clk 0:01:05.6]} 28.
a3 {[%clk 0:02:29.7]} 28... Rc8 {[%clk 0:00:48.4]} 29. Qh6 {[%clk 0:02:26.8]}
29... Qd6 {[%clk 0:00:43.6]} 30. Rxg7+ {[%clk 0:02:25.2]} 30... Bxg7 {[%clk
0:00:40.9]} 31. Qxd6 {[%clk 0:02:26.1]} 1-0

[Event "Late-Titled-Tuesday-Blitz-October-10-2023"]
[Site "Chess.com"]
[Date "2023.10.10"]
[Round "10"]
[White "isainz"]
[Black "ferrufino64"]
[Result "0-1"]
[WhiteElo "2022"]
[BlackElo "2208"]
[TimeControl "180+1"]
[EndTime "15:47:58 PDT"]
[Termination "ferrufino64 won by resignation"]

1. e4 {[%clk 0:03:00.9]} 1... c5 {[%clk 0:02:55.8]} 2. Nf3 {[%clk 0:03:00.9]}
2... d6 {[%clk 0:02:56.3]} 3. Bb5+ {[%clk 0:02:58.9]} 3... Bd7 {[%clk
0:02:53.7]} 4. Bxd7+ {[%clk 0:02:58.9]} 4... Qxd7 {[%clk 0:02:50.3]} 5. O-O
{[%clk 0:02:58.7]} 5... Nc6 {[%clk 0:02:50.4]} 6. c3 {[%clk 0:02:56.1]} 6... Nf6
{[%clk 0:02:50.2]} 7. Re1 {[%clk 0:02:55.2]} 7... e5 {[%clk 0:02:50.3]} 8. d4
{[%clk 0:02:52.6]} 8... Qc7 {[%clk 0:02:49.5]} 9. d5 {[%clk 0:02:51.5]} 9... Ne7
{[%clk 0:02:46.2]} 10. a4 {[%clk 0:02:50.6]} 10... g6 {[%clk 0:02:45.5]} 11. Na3
{[%clk 0:02:41.8]} 11... Bg7 {[%clk 0:02:42.5]} 12. Nb5 {[%clk 0:02:37]} 12...
Qd7 {[%clk 0:02:42.4]} 13. b4 {[%clk 0:02:19]} 13... b6 {[%clk 0:02:25.5]} 14.
Qd3 {[%clk 0:01:52.4]} 14... O-O {[%clk 0:02:20.4]} 15. a5 {[%clk 0:01:50.9]}
15... Nh5 {[%clk 0:02:02.2]} 16. g3 {[%clk 0:01:48]} 16... h6 {[%clk 0:02:00.8]}
17. Be3 {[%clk 0:01:40]} 17... f5 {[%clk 0:01:57.6]} 18. axb6 {[%clk 0:01:33.3]}
18... axb6 {[%clk 0:01:57.7]} 19. Rxa8 {[%clk 0:01:32.5]} 19... Rxa8 {[%clk
0:01:58]} 20. bxc5 {[%clk 0:01:19.2]} 20... fxe4 {[%clk 0:01:54.8]} 21. c6
{[%clk 0:01:10.3]} 21... Qg4 {[%clk 0:01:55]} 22. Qf1 {[%clk 0:00:50]} 22...
exf3 {[%clk 0:01:50.8]} 23. Nxd6 {[%clk 0:00:49.4]} 23... Nf5 {[%clk 0:01:49]}
24. c7 {[%clk 0:00:43.2]} 24... Nxd6 {[%clk 0:01:47.6]} 0-1

[Event "Late-Titled-Tuesday-Blitz-October-10-2023"]
[Site "Chess.com"]
[Date "2023.10.10"]
[Round "10"]
[White "nicholas_ilic"]
[Black "TanitoluwaAps116"]
[Result "0-1"]
[WhiteElo "2332"]
[BlackElo "2662"]
[TimeControl "180+1"]
[EndTime "15:48:02 PDT"]
[Termination "TanitoluwaAps116 won by checkmate"]

1. e4 {[%clk 0:03:00.9]} 1... c5 {[%clk 0:02:52.5]} 2. Nf3 {[%clk 0:02:56.2]}
2... Nc6 {[%clk 0:02:52.4]} 3. b3 {[%clk 0:02:56]} 3... Nf6 {[%clk 0:02:52]} 4.
Nc3 {[%clk 0:02:55.9]} 4... g6 {[%clk 0:02:51.1]} 5. Bb2 {[%clk 0:02:55.9]} 5...
Bg7 {[%clk 0:02:51.4]} 6. Bb5 {[%clk 0:02:55.7]} 6... Nxe4 {[%clk 0:02:49.2]} 7.
Bf1 {[%clk 0:02:53.4]} 7... Nxc3 {[%clk 0:02:45.1]} 8. dxc3 {[%clk 0:02:52.8]}
8... d5 {[%clk 0:02:45.1]} 9. Bb5 {[%clk 0:02:49.7]} 9... O-O {[%clk 0:02:44.2]}
10. O-O {[%clk 0:02:46.8]} 10... Bg4 {[%clk 0:02:43.4]} 11. Bxc6 {[%clk
0:02:42.2]} 11... bxc6 {[%clk 0:02:44.3]} 12. Qd3 {[%clk 0:02:41.9]} 12... e5
{[%clk 0:02:41.7]} 13. Qe3 {[%clk 0:02:38.1]} 13... Re8 {[%clk 0:02:13.7]} 14.
h3 {[%clk 0:02:37.7]} 14... Bxf3 {[%clk 0:02:08.3]} 15. Qxf3 {[%clk 0:02:37]}
15... e4 {[%clk 0:02:09]} 16. Qe3 {[%clk 0:02:36.1]} 16... d4 {[%clk 0:02:09.5]}
17. cxd4 {[%clk 0:02:35.6]} 17... cxd4 {[%clk 0:02:10.4]} 18. Qe2 {[%clk
0:02:34.2]} 18... d3 {[%clk 0:02:10.4]} 19. cxd3 {[%clk 0:02:34.1]} 19... exd3
{[%clk 0:02:10.8]} 20. Qd2 {[%clk 0:02:28.3]} 20... Re2 {[%clk 0:02:09.9]} 21.
Qf4 {[%clk 0:02:23.6]} 21... Bxb2 {[%clk 0:02:08.4]} 22. Rad1 {[%clk 0:02:23.4]}
22... Qf6 {[%clk 0:02:04.4]} 23. Qg3 {[%clk 0:02:07.3]} 23... Bd4 {[%clk
0:02:02.5]} 24. Rxd3 {[%clk 0:02:03.8]} 24... Rae8 {[%clk 0:02:01.5]} 25. Rf3
{[%clk 0:02:03.1]} 25... Qe6 {[%clk 0:02:00.5]} 26. Qc7 {[%clk 0:02:00.7]} 26...
Re5 {[%clk 0:01:54.2]} 27. Rd3 {[%clk 0:01:34.6]} 27... c5 {[%clk 0:01:53]} 28.
b4 {[%clk 0:01:32.4]} 28... Qd5 {[%clk 0:01:52.3]} 29. Rdd1 {[%clk 0:01:13.6]}
29... Rg5 {[%clk 0:01:50.1]} 30. g3 {[%clk 0:01:10]} 30... Qf3 {[%clk
0:01:47.8]} 31. Qd7 {[%clk 0:00:56.3]} 31... Qxg3+ {[%clk 0:01:43.9]} 32. Kh1
{[%clk 0:00:54.1]} 32... Qg2# {[%clk 0:01:44.8]} 0-1

[Event "Late-Titled-Tuesday-Blitz-October-10-2023"]
[Site "Chess.com"]
[Date "2023.10.10"]
[Round "10"]
[White "Beca95"]
[Black "filipluczak05"]
[Result "1-0"]
[WhiteElo "2862"]
[BlackElo "2628"]
[TimeControl "180+1"]
[EndTime "15:48:27 PDT"]
[Termination "Beca95 won by resignation"]

1. d4 {[%clk 0:03:00.9]} 1... g6 {[%clk 0:02:59.4]} 2. e4 {[%clk 0:02:58.3]}
2... Bg7 {[%clk 0:02:59.5]} 3. Nc3 {[%clk 0:02:58.6]} 3... c5 {[%clk 0:02:56]}
4. dxc5 {[%clk 0:02:57.8]} 4... Bxc3+ {[%clk 0:02:55.4]} 5. bxc3 {[%clk
0:02:58.6]} 5... Nf6 {[%clk 0:02:55.1]} 6. e5 {[%clk 0:02:51.7]} 6... Ne4 {[%clk
0:02:55]} 7. Qd4 {[%clk 0:02:49.4]} 7... Qa5 {[%clk 0:02:54.4]} 8. Bd3 {[%clk
0:02:25.1]} 8... Nxc5 {[%clk 0:02:52.3]} 9. Qb4 {[%clk 0:02:14.9]} 9... Nxd3+
{[%clk 0:02:51.6]} 10. cxd3 {[%clk 0:02:14.1]} 10... Qxe5+ {[%clk 0:02:52.2]}
11. Be3 {[%clk 0:02:13.8]} 11... Nc6 {[%clk 0:02:52.5]} 12. Qb2 {[%clk
0:02:12.7]} 12... O-O {[%clk 0:02:50.8]} 13. Nf3 {[%clk 0:02:12.7]} 13... Qf5
{[%clk 0:02:48]} 14. Qd2 {[%clk 0:02:12.1]} 14... d6 {[%clk 0:02:46.4]} 15. h4
{[%clk 0:02:12.2]} 15... Qh5 {[%clk 0:02:44.7]} 16. Ng5 {[%clk 0:02:09.1]} 16...
Ne5 {[%clk 0:02:30.7]} 17. f3 {[%clk 0:02:06.8]} 17... Bd7 {[%clk 0:02:13.4]}
18. Qe2 {[%clk 0:01:59.5]} 18... f6 {[%clk 0:02:08.8]} 19. Ne4 {[%clk
0:01:50.6]} 19... f5 {[%clk 0:01:53.7]} 20. Ng3 {[%clk 0:01:49.1]} 20... f4
{[%clk 0:01:41]} 21. Nxh5 {[%clk 0:01:48.1]} 21... fxe3 {[%clk 0:01:41.1]} 22.
Ng3 {[%clk 0:01:46.9]} 22... Rac8 {[%clk 0:01:39.8]} 23. c4 {[%clk 0:01:45.8]}
23... b5 {[%clk 0:01:36.8]} 24. Qxe3 {[%clk 0:01:41.8]} 24... bxc4 {[%clk
0:01:37.1]} 25. dxc4 {[%clk 0:01:41.4]} 25... Rxc4 {[%clk 0:01:36.1]} 26. O-O
{[%clk 0:01:39]} 26... Rxh4 {[%clk 0:01:36.4]} 27. Qxa7 {[%clk 0:01:34.6]} 27...
Rhf4 {[%clk 0:01:24.7]} 28. Rae1 {[%clk 0:01:31.2]} 28... Bb5 {[%clk 0:01:23.5]}
29. Rxe5 {[%clk 0:01:28.9]} 29... dxe5 {[%clk 0:01:21.5]} 30. Re1 {[%clk
0:01:28.7]} 30... Bc4 {[%clk 0:01:18.1]} 31. a4 {[%clk 0:01:27]} 31... h5 {[%clk
0:01:17.2]} 32. Rxe5 {[%clk 0:01:25.1]} 32... h4 {[%clk 0:01:17.7]} 33. Rxe7
{[%clk 0:01:22.2]} 33... Bf7 {[%clk 0:01:16.9]} 34. Ne4 {[%clk 0:01:21.3]} 34...
h3 {[%clk 0:01:17.2]} 35. Qc7 {[%clk 0:01:17.3]} 35... Rf5 {[%clk 0:01:15.7]}
36. Nd6 {[%clk 0:01:09.6]} 1-0

[Event "Late-Titled-Tuesday-Blitz-October-10-2023"]
[Site "Chess.com"]
[Date "2023.10.10"]
[Round "10"]
[White "Chesstrainer1"]
[Black "hellokostya"]
[Result "0-1"]
[WhiteElo "2490"]
[BlackElo "2629"]
[TimeControl "180+1"]
[EndTime "15:48:35 PDT"]
[Termination "hellokostya won on time"]

1. e4 {[%clk 0:02:56.7]} 1... c5 {[%clk 0:02:59.2]} 2. Nf3 {[%clk 0:02:56]} 2...
Nc6 {[%clk 0:02:59.2]} 3. d4 {[%clk 0:02:55.5]} 3... cxd4 {[%clk 0:03:00.1]} 4.
Nxd4 {[%clk 0:02:55.9]} 4... Nf6 {[%clk 0:03:00.7]} 5. Nc3 {[%clk 0:02:56.1]}
5... e5 {[%clk 0:03:01.3]} 6. Ndb5 {[%clk 0:02:55.9]} 6... d6 {[%clk 0:03:01.8]}
7. Bg5 {[%clk 0:02:54]} 7... a6 {[%clk 0:03:02.2]} 8. Na3 {[%clk 0:02:54.1]}
8... b5 {[%clk 0:03:02.8]} 9. Nab1 {[%clk 0:02:52.1]} 9... Be7 {[%clk
0:02:58.8]} 10. Bxf6 {[%clk 0:02:49.3]} 10... Bxf6 {[%clk 0:02:58.9]} 11. a4
{[%clk 0:02:49.3]} 11... b4 {[%clk 0:02:58]} 12. Nd5 {[%clk 0:02:49.4]} 12...
O-O {[%clk 0:02:56.6]} 13. Bc4 {[%clk 0:02:43.4]} 13... g6 {[%clk 0:02:53.5]}
14. O-O {[%clk 0:02:38]} 14... Bg7 {[%clk 0:02:53.7]} 15. Qd3 {[%clk 0:02:28.7]}
15... Kh8 {[%clk 0:02:51.8]} 16. c3 {[%clk 0:02:28.9]} 16... bxc3 {[%clk
0:02:48.2]} 17. Nbxc3 {[%clk 0:02:28]} 17... Nd4 {[%clk 0:02:47.2]} 18. a5
{[%clk 0:02:18.3]} 18... Be6 {[%clk 0:02:39.5]} 19. Bxa6 {[%clk 0:02:07.4]}
19... Nb3 {[%clk 0:02:38.3]} 20. Bb7 {[%clk 0:01:53.1]} 20... Rxa5 {[%clk
0:02:27]} 21. Rxa5 {[%clk 0:01:46]} 21... Qxa5 {[%clk 0:02:27.9]} 22. Qa6 {[%clk
0:01:10.1]} 22... Qxa6 {[%clk 0:02:22.2]} 23. Bxa6 {[%clk 0:01:09.6]} 23... Rb8
{[%clk 0:02:21.2]} 24. Rd1 {[%clk 0:00:57.5]} 24... Nc5 {[%clk 0:02:20]} 25. Bc4
{[%clk 0:00:20.5]} 25... Rxb2 {[%clk 0:02:13.8]} 26. Ne3 {[%clk 0:00:20.4]}
26... Bxc4 {[%clk 0:02:08.3]} 27. Nxc4 {[%clk 0:00:20.5]} 27... Rc2 {[%clk
0:02:09]} 28. Nxd6 {[%clk 0:00:08.4]} 28... Rxc3 {[%clk 0:02:00.6]} 29. Nxf7+
{[%clk 0:00:06.9]} 29... Kg8 {[%clk 0:02:01.2]} 30. Ng5 {[%clk 0:00:06.6]} 30...
h6 {[%clk 0:01:57.7]} 0-1

[Event "Late-Titled-Tuesday-Blitz-October-10-2023"]
[Site "Chess.com"]
[Date "2023.10.10"]
[Round "10"]
[White "Rodalquilar"]
[Black "DanielNaroditsky"]
[Result "0-1"]
[WhiteElo "2768"]
[BlackElo "3167"]
[TimeControl "180+1"]
[EndTime "15:48:36 PDT"]
[Termination "DanielNaroditsky won on time"]

1. d4 {[%clk 0:03:00.9]} 1... Nf6 {[%clk 0:03:00.2]} 2. Nf3 {[%clk 0:03:01.3]}
2... g6 {[%clk 0:03:00.9]} 3. Bf4 {[%clk 0:03:01.7]} 3... c5 {[%clk 0:03:00.9]}
4. e3 {[%clk 0:02:48.2]} 4... Qb6 {[%clk 0:03:00.2]} 5. Na3 {[%clk 0:02:48.1]}
5... cxd4 {[%clk 0:02:59.7]} 6. exd4 {[%clk 0:02:47.4]} 6... d6 {[%clk 0:03:00]}
7. Nc4 {[%clk 0:02:44.1]} 7... Qc7 {[%clk 0:03:00.1]} 8. a4 {[%clk 0:02:44.3]}
8... b6 {[%clk 0:03:00]} 9. Qe2 {[%clk 0:02:12.6]} 9... e6 {[%clk 0:02:46.7]}
10. a5 {[%clk 0:01:23.2]} 10... b5 {[%clk 0:02:42.7]} 11. Ne3 {[%clk 0:01:23]}
11... a6 {[%clk 0:02:40.4]} 12. Bg5 {[%clk 0:01:23.4]} 12... Nbd7 {[%clk
0:02:37.7]} 13. d5 {[%clk 0:01:20.7]} 13... e5 {[%clk 0:02:32.6]} 14. c4 {[%clk
0:01:02]} 14... Rb8 {[%clk 0:02:15.4]} 15. Rc1 {[%clk 0:01:00.2]} 15... Qxa5+
{[%clk 0:02:14.8]} 16. Qd2 {[%clk 0:00:54.1]} 16... b4 {[%clk 0:02:13.6]} 17.
Bd3 {[%clk 0:00:52.9]} 17... Bg7 {[%clk 0:02:13.9]} 18. Qc2 {[%clk 0:00:32.1]}
18... Nc5 {[%clk 0:02:04.2]} 19. Be2 {[%clk 0:00:20.9]} 19... Nfe4 {[%clk
0:01:56.1]} 20. O-O {[%clk 0:00:17.7]} 20... h6 {[%clk 0:01:54.6]} 21. Bh4
{[%clk 0:00:17.8]} 21... g5 {[%clk 0:01:55.4]} 22. Bg3 {[%clk 0:00:18.2]} 22...
f5 {[%clk 0:01:56.2]} 23. Nd2 {[%clk 0:00:10.8]} 23... b3 {[%clk 0:01:55.3]} 24.
Bh5+ {[%clk 0:00:10.4]} 24... Ke7 {[%clk 0:01:51.5]} 25. Nxb3 {[%clk 0:00:04.7]}
25... Rxb3 {[%clk 0:01:51.3]} 26. Ra1 {[%clk 0:00:04.7]} 26... Qd2 {[%clk
0:01:48]} 0-1

[Event "Late-Titled-Tuesday-Blitz-October-10-2023"]
[Site "Chess.com"]
[Date "2023.10.10"]
[Round "10"]
[White "Lion-Al-Messi"]
[Black "temus_galaktionov"]
[Result "0-1"]
[WhiteElo "2629"]
[BlackElo "2874"]
[TimeControl "180+1"]
[EndTime "15:48:36 PDT"]
[Termination "temus_galaktionov won by resignation"]

1. d4 {[%clk 0:03:00.9]} 1... c6 {[%clk 0:03:00.9]} 2. Nf3 {[%clk 0:02:58.3]}
2... g6 {[%clk 0:03:01.8]} 3. Nc3 {[%clk 0:02:55.2]} 3... Bg7 {[%clk 0:03:01.9]}
4. Bf4 {[%clk 0:02:54]} 4... d6 {[%clk 0:03:02.1]} 5. Qd2 {[%clk 0:02:53.6]}
5... Nd7 {[%clk 0:03:02.7]} 6. O-O-O {[%clk 0:02:53.4]} 6... b5 {[%clk
0:03:03.1]} 7. h4 {[%clk 0:02:45.5]} 7... Qa5 {[%clk 0:03:02.9]} 8. Kb1 {[%clk
0:02:45.1]} 8... Ngf6 {[%clk 0:03:03.1]} 9. Nd5 {[%clk 0:02:21.5]} 9... Qxd2
{[%clk 0:02:59.7]} 10. Nxf6+ {[%clk 0:02:20.9]} 10... Nxf6 {[%clk 0:02:59.3]}
11. Nxd2 {[%clk 0:02:18.7]} 11... Ng4 {[%clk 0:02:53.5]} 12. Be3 {[%clk
0:02:07.8]} 12... Nxe3 {[%clk 0:02:51.1]} 13. fxe3 {[%clk 0:02:08.7]} 13... d5
{[%clk 0:02:46.5]} 14. g3 {[%clk 0:02:06.9]} 14... Bg4 {[%clk 0:02:43.4]} 15.
Nf3 {[%clk 0:02:05]} 15... f6 {[%clk 0:02:38.1]} 16. Bh3 {[%clk 0:02:04.8]}
16... Bxh3 {[%clk 0:02:38.2]} 17. Rxh3 {[%clk 0:02:05.7]} 17... Kd7 {[%clk
0:02:37]} 18. b3 {[%clk 0:02:02.6]} 18... h5 {[%clk 0:02:32.7]} 19. c4 {[%clk
0:02:02.4]} 19... bxc4 {[%clk 0:02:31.2]} 20. bxc4 {[%clk 0:02:03.3]} 20... Bh6
{[%clk 0:02:29.3]} 21. Rd3 {[%clk 0:01:48.5]} 21... Rab8+ {[%clk 0:02:27.1]} 22.
Kc2 {[%clk 0:01:47.9]} 22... dxc4 {[%clk 0:02:22.6]} 23. Rc3 {[%clk 0:01:48]}
23... Rb4 {[%clk 0:02:22.5]} 24. Nd2 {[%clk 0:01:47.7]} 24... Rhb8 {[%clk
0:02:15]} 25. Nxc4 {[%clk 0:01:47]} 25... Rb1 {[%clk 0:02:15]} 26. Rh2 {[%clk
0:01:27.2]} 26... Rg1 {[%clk 0:02:12.7]} 27. Ra3 {[%clk 0:01:21.8]} 27... Rb7
{[%clk 0:02:10.5]} 28. Na5 {[%clk 0:01:15.2]} 28... Rbb1 {[%clk 0:02:06.1]} 29.
Nc4 {[%clk 0:01:00.6]} 29... Rbc1+ {[%clk 0:01:57.9]} 30. Kb3 {[%clk 0:00:59.3]}
30... Rxg3 {[%clk 0:01:55]} 31. Rxa7+ {[%clk 0:00:58.3]} 31... Ke8 {[%clk
0:01:55.3]} 32. Rf2 {[%clk 0:00:34.4]} 32... Bxe3 {[%clk 0:01:54.5]} 33. Rf3
{[%clk 0:00:34.8]} 33... Rxf3 {[%clk 0:01:52.7]} 34. exf3 {[%clk 0:00:35.7]}
34... Bxd4 {[%clk 0:01:53.1]} 35. Ra8+ {[%clk 0:00:35.5]} 35... Kf7 {[%clk
0:01:50.8]} 36. Rc8 {[%clk 0:00:34.8]} 36... c5 {[%clk 0:01:48.8]} 37. a4 {[%clk
0:00:33.6]} 37... Rc3+ {[%clk 0:01:48.7]} 38. Ka2 {[%clk 0:00:31.3]} 38... Rxc4
{[%clk 0:01:49.6]} 0-1

[Event "Late-Titled-Tuesday-Blitz-October-10-2023"]
[Site "Chess.com"]
[Date "2023.10.10"]
[Round "10"]
[White "howitzer14"]
[Black "IngOscarArdila"]
[Result "1-0"]
[WhiteElo "2972"]
[BlackElo "2318"]
[TimeControl "180+1"]
[EndTime "15:48:50 PDT"]
[Termination "howitzer14 won by resignation"]

1. d4 {[%clk 0:03:00.9]} 1... Nf6 {[%clk 0:02:57.2]} 2. Bf4 {[%clk 0:03:01.2]}
2... e6 {[%clk 0:02:56.7]} 3. e3 {[%clk 0:03:00.3]} 3... Be7 {[%clk 0:02:55.5]}
4. Nd2 {[%clk 0:02:52.3]} 4... O-O {[%clk 0:02:52.4]} 5. c3 {[%clk 0:02:41.8]}
5... d6 {[%clk 0:02:52.2]} 6. h3 {[%clk 0:02:37.8]} 6... Nbd7 {[%clk 0:02:51.4]}
7. Ngf3 {[%clk 0:02:33.6]} 7... b6 {[%clk 0:02:50]} 8. a4 {[%clk 0:02:34.1]}
8... a5 {[%clk 0:02:49.7]} 9. Bb5 {[%clk 0:02:20.8]} 9... Bb7 {[%clk 0:02:47.8]}
10. O-O {[%clk 0:02:21.2]} 10... Ne4 {[%clk 0:02:46.8]} 11. Nxe4 {[%clk
0:02:12.8]} 11... Bxe4 {[%clk 0:02:46.2]} 12. Bh2 {[%clk 0:02:13.5]} 12... f5
{[%clk 0:02:42.2]} 13. Qb3 {[%clk 0:02:03.3]} 13... Bd5 {[%clk 0:02:30.5]} 14.
Bc4 {[%clk 0:02:02.8]} 14... c6 {[%clk 0:02:06.6]} 15. Rfe1 {[%clk 0:02:00]}
15... Bxc4 {[%clk 0:02:02.4]} 16. Qxc4 {[%clk 0:01:58.2]} 16... Kf7 {[%clk
0:01:49.1]} 17. Qxc6 {[%clk 0:01:54.6]} 17... Rc8 {[%clk 0:01:49.4]} 18. Qb5
{[%clk 0:01:53.1]} 18... Qc7 {[%clk 0:01:45.7]} 19. e4 {[%clk 0:01:49.5]} 19...
Qc6 {[%clk 0:01:42]} 20. exf5 {[%clk 0:01:47.1]} 20... exf5 {[%clk 0:01:28.5]}
21. Qxf5+ {[%clk 0:01:33]} 21... Kg8 {[%clk 0:01:28.9]} 22. Qd3 {[%clk
0:01:13.8]} 22... Rf7 {[%clk 0:01:08.8]} 23. Re3 {[%clk 0:01:11.5]} 23... Rcf8
{[%clk 0:01:08.2]} 24. Rae1 {[%clk 0:01:12]} 24... Bd8 {[%clk 0:01:05]} 25. Qb5
{[%clk 0:01:10.9]} 25... Qb7 {[%clk 0:00:51.6]} 26. Bxd6 {[%clk 0:01:10]} 26...
Rxf3 {[%clk 0:00:46.9]} 27. gxf3 {[%clk 0:01:09.7]} 27... Rf6 {[%clk 0:00:40.4]}
28. Qc4+ {[%clk 0:01:09.2]} 28... Rf7 {[%clk 0:00:35.7]} 29. Re8+ {[%clk
0:01:09.7]} 1-0